bitfinex/quotes_BTCUSD_20240719
["timestamp","ask_amount","ask_price","bid_price","bid_amount"]
[1721376826013,1.55928,63605.0,63604.0,0.000913]
[1721376826212,1.81366174,63605.0,63604.0,0.000913]
[1721376828312,2.12810174,63605.0,63604.0,0.000913]
[1721376828470,1.81366174,63605.0,63604.0,0.000913]
[1721376828813,2.49805131,63605.0,63604.0,0.000913]
[1721376829014,2.49805131,63605.0,63587.0,0.009174]
[1721376829015,1.415268,63592.0,63587.0,0.009174]
[1721376829257,1.78762453,63592.0,63587.0,0.009174]
[1721376829457,2.20212853,63592.0,63587.0,0.009174]
[1721376829684,2.56255819,63592.0,63587.0,0.009174]
[1721376829878,3.14937751,63592.0,63587.0,0.009174]
[1721376830071,3.64937751,63592.0,63587.0,0.009174]
[1721376830208,3.70658632,63592.0,63587.0,0.009174]
[1721376830826,3.70658632,63592.0,63576.0,0.009174]
[1721376830827,0.05,63580.0,63576.0,0.009174]
[1721376831031,0.61244279,63577.0,63576.0,0.009174]
[1721376831235,1.81056153,63577.0,63576.0,0.009174]
[1721376831432,2.12514053,63577.0,63576.0,0.009174]
[1721376831639,2.56874053,63577.0,63576.0,0.009174]
[1721376831998,2.56874053,63577.0,63553.0,0.009174]
[1721376831999,0.157344,63555.0,63553.0,0.009174]
[1721376832288,0.472032,63555.0,63553.0,0.009174]
[1721376832480,0.78672,63555.0,63553.0,0.009174]
[1721376832682,1.101408,63555.0,63553.0,0.009174]
[1721376832855,1.50713054,63555.0,63553.0,0.009174]
[1721376833061,1.92181854,63555.0,63553.0,0.009174]
[1721376833219,1.92381854,63555.0,63553.0,0.009174]
[1721376833421,1.55521831,63555.0,63553.0,0.009174]
[1721376833727,1.04310174,63555.0,63553.0,0.009174]
[1721376834204,0.002,63555.0,63554.0,0.0772324]
[1721376834928,0.46304871,63565.0,63554.0,0.0772324]
[1721376835177,0.4752,63566.0,63554.0,0.0772324]
[1721376835178,0.46304871,63563.0,63554.0,0.0772324]
[1721376835461,0.46304871,63563.0,63554.0,0.0143324]
[1721376835462,0.171344,63555.0,63554.0,0.0143324]
[1721376835637,0.94110174,63555.0,63554.0,0.0143324]
[1721376836073,1.25578974,63555.0,63554.0,0.0143324]
[1721376836242,1.38908619,63555.0,63554.0,0.0143324]
[1721376836420,1.48908619,63555.0,63554.0,0.0143324]
[1721376837447,0.72641374,63555.0,63554.0,0.0143324]
[1721376837781,0.31172574,63555.0,63554.0,0.0143324]
[1721376838124,0.4752,63566.0,63556.0,0.0655]
[1721376838334,0.157302,63572.0,63559.0,0.228]
[1721376838555,0.4752,63578.0,63564.0,0.157319]
[1721376838759,0.4752,63578.0,63560.0,0.1605]
[1721376839010,0.4752,63578.0,63569.0,0.0655]
[1721376839233,0.4752,63578.0,63561.0,0.1428]
[1721376839234,0.157314,63567.0,63561.0,0.1428]
[1721376839450,0.157315,63567.0,63561.0,0.1428]
[1721376839654,0.07717479,63573.0,63561.0,0.1428]
[1721376839859,0.15438174,63572.0,63562.0,0.002794]
[1721376840075,0.15438174,63572.0,63561.0,0.1428]
[1721376840076,0.157315,63567.0,63561.0,0.1428]
[1721376840279,0.07717479,63566.0,63561.0,0.1428]
[1721376840565,0.23155653,63566.0,63561.0,0.1428]
[1721376840765,0.23155653,63566.0,63554.0,0.0143324]
[1721376840766,0.472017,63557.0,63556.0,0.0655]
[1721376840967,0.157344,63555.0,63554.0,0.0916324]
[1721376841244,0.157339,63557.0,63554.0,0.0916324]
[1721376841451,0.472032,63555.0,63554.0,0.0143324]
[1721376841649,1.04292809,63555.0,63554.0,0.0143324]
[1721376841880,0.472032,63555.0,63554.0,0.0143324]
[1721376842084,0.62641374,63555.0,63554.0,0.0143324]
[1721376842501,0.94110174,63555.0,63554.0,0.0143324]
[1721376842879,0.94210174,63555.0,63554.0,0.0099324]
[1721376843087,1.25678974,63555.0,63554.0,0.0099324]
[1721376843290,1.39018619,63555.0,63554.0,0.0099324]
[1721376843654,1.49018619,63555.0,63554.0,0.0099324]
[1721376844606,1.35678974,63555.0,63554.0,0.0099324]
[1721376846831,0.001,63555.0,63554.0,0.0099324]
[1721376846991,0.001,63555.0,63554.0,0.2281784]
[1721376847172,0.001,63555.0,63554.0,0.0708324]
[1721376847568,0.62741374,63555.0,63554.0,0.0099324]
[1721376847765,0.94210174,63555.0,63554.0,0.0099324]
[1721376848026,1.03631191,63555.0,63554.0,0.0099324]
[1721376848181,1.35099991,63555.0,63554.0,0.0099324]
[1721376848382,1.45099991,63555.0,63554.0,0.0099324]
[1721376849257,1.44999991,63555.0,63554.0,0.0099324]
[1721376849611,1.14931191,63555.0,63554.0,0.0099324]
[1721376850024,1.04110174,63555.0,63554.0,0.0099324]
[1721376850990,1.04110174,63555.0,63554.0,0.0108454]
[1721376851718,0.157344,63555.0,63554.0,0.0108454]
[1721376852173,0.314634,63566.0,63556.0,0.0602]
[1721376852433,0.47603,63568.0,63557.0,0.082094]
[1721376852610,0.472032,63555.0,63554.0,0.0108454]
[1721376852815,0.94110174,63555.0,63554.0,0.0108454]
[1721376853455,0.95510174,63555.0,63554.0,0.0108454]
[1721376853661,1.05061191,63555.0,63554.0,0.0108454]
[1721376854149,1.36529991,63555.0,63554.0,0.0108454]
[1721376854524,1.46529991,63555.0,63554.0,0.0108454]
[1721376854733,1.45129991,63555.0,63554.0,0.0108454]
[1721376855338,1.76598791,63555.0,63554.0,0.0108454]
[1721376855560,1.45129991,63555.0,63554.0,0.0108454]
[1721376855966,1.76598791,63555.0,63554.0,0.0108454]
[1721376856357,1.77998791,63555.0,63554.0,0.0108454]
[1721376856562,1.76598791,63555.0,63554.0,0.0108454]
[1721376856759,1.45129991,63555.0,63554.0,0.0108454]
[1721376856962,1.46529991,63555.0,63554.0,0.0108454]
[1721376857309,1.77998791,63555.0,63554.0,0.0108454]
[1721376857676,2.13888791,63555.0,63554.0,4e-07]
[1721376857854,2.13888791,63555.0,63551.0,0.002]
[1721376857855,1.187653,63552.0,63551.0,0.002]
[1721376858035,2.35842339,63552.0,63551.0,0.002]
[1721376858238,2.67312539,63552.0,63551.0,0.002]
[1721376858439,3.50252939,63552.0,63551.0,0.002]
[1721376858696,3.50252939,63552.0,63517.0,0.002794]
[1721376858697,0.662435,63541.0,63517.0,0.002794]
[1721376858898,1.66014853,63541.0,63517.0,0.002794]
[1721376859233,1.66014853,63541.0,63512.0,0.009174]
[1721376859234,0.157443,63515.0,63512.0,0.073174]
[1721376859435,0.472329,63515.0,63512.0,0.073174]
[1721376859843,0.787215,63515.0,63512.0,0.073174]
[1721376860053,0.07717479,63525.0,63512.0,0.009174]
[1721376860054,0.78724,63513.0,63512.0,0.009174]
[1721376860654,0.472344,63513.0,63512.0,0.009174]
[1721376861141,0.002,63515.0,63512.0,0.009174]
[1721376861348,0.157448,63513.0,63512.0,0.009174]
[1721376862301,0.472344,63513.0,63512.0,0.009174]
[1721376862505,0.78724,63513.0,63512.0,0.009174]
[1721376862708,0.472344,63513.0,63512.0,0.009174]
[1721376863312,0.477344,63513.0,63512.0,0.009174]
[1721376863636,0.78724,63513.0,63512.0,0.009174]
[1721376863854,0.78924,63513.0,63512.0,0.009174]
[1721376865231,0.002,63513.0,63512.0,0.153174]
[1721376865435,0.159448,63513.0,63512.0,0.15726261]
[1721376865638,0.002,63513.0,63512.0,0.15726261]
[1721376865847,0.002,63513.0,63512.0,0.31471261]
[1721376866057,0.002,63513.0,63512.0,0.15726261]
[1721376866630,0.314871,63518.0,63512.0,0.15726261]
[1721376866891,0.314856,63521.0,63512.0,0.15726261]
[1721376866892,0.78724,63513.0,63512.0,0.15726261]
[1721376867081,1.2123484,63513.0,63512.0,0.15726261]
[1721376867496,1.2123484,63513.0,63512.0,0.01326261]
[1721376867646,1.2143484,63513.0,63512.0,0.01326261]
[1721376867845,0.78924,63513.0,63512.0,0.01326261]
[1721376869132,0.78724,63513.0,63512.0,0.01326261]
[1721376869512,0.78924,63513.0,63512.0,0.01326261]
[1721376869730,0.002,63513.0,63512.0,0.01326261]
[1721376869933,0.002,63513.0,63512.0,0.15686261]
[1721376870337,0.159448,63513.0,63512.0,0.15686261]
[1721376870792,0.002,63513.0,63512.0,0.15686261]
[1721376870949,0.159448,63513.0,63512.0,0.15686261]
[1721376871515,0.474344,63513.0,63512.0,0.15686261]
[1721376872159,0.159448,63513.0,63512.0,0.15686261]
[1721376872694,0.002,63513.0,63512.0,0.15686261]
[1721376873109,0.159448,63513.0,63512.0,0.15686261]
[1721376873567,0.002,63513.0,63512.0,0.15686261]
[1721376873981,0.002,63513.0,63512.0,0.31431261]
[1721376874185,0.002,63513.0,63512.0,0.15686261]
[1721376874495,0.002,63513.0,63512.0,0.31431261]
[1721376874906,0.002,63513.0,63512.0,0.15686261]
[1721376876633,0.002,63513.0,63512.0,0.31431261]
[1721376876876,0.157436,63518.0,63512.0,0.31431261]
[1721376876985,0.629705,63522.0,63512.0,0.31431261]
[1721376876986,0.157433,63519.0,63513.0,0.002794]
[1721376877211,0.157434,63519.0,63513.0,0.160241]
[1721376877411,0.157436,63518.0,63513.0,0.002794]
[1721376877838,0.314862,63520.0,63513.0,0.16024]
[1721376878041,0.314856,63521.0,63514.0,0.157445]
[1721376878212,0.314842,63524.0,63515.0,0.002794]
[1721376878213,0.157431,63520.0,63515.0,0.002794]
[1721376878397,0.009,63519.0,63515.0,0.002794]
[1721376878596,0.009,63519.0,63514.0,0.157444]
[1721376878840,0.157433,63519.0,63515.0,0.002794]
[1721376879056,0.01,63520.0,63513.0,0.002794]
[1721376879302,0.01,63520.0,63515.0,0.157442]
[1721376879502,0.01,63520.0,63516.0,0.002794]
[1721376879647,0.01,63520.0,63515.0,0.002794]
[1721376880076,0.01,63520.0,63516.0,0.00314852]
[1721376880282,0.01,63520.0,63514.0,0.314889]
[1721376880283,0.01,63520.0,63517.0,0.002794]
[1721376880578,0.01,63520.0,63514.0,0.314889]
[1721376880579,0.314828,63527.0,63516.0,0.157438]
[1721376880777,0.009,63519.0,63517.0,0.002794]
[1721376881162,0.157425,63522.0,63516.0,0.002794]
[1721376881367,0.008,63520.0,63516.0,0.002794]
[1721376881577,0.00781058,63520.0,63516.0,0.160233]
[1721376881786,0.157428,63521.0,63516.0,0.160233]
[1721376882035,0.005,63519.0,63516.0,0.160233]
[1721376882235,0.005,63519.0,63516.0,0.002794]
[1721376882463,0.005,63519.0,63512.0,0.47175961]
[1721376882464,0.157427,63522.0,63515.0,0.317679]
[1721376882608,0.157427,63522.0,63516.0,0.157438]
[1721376882810,0.314842,63524.0,63517.0,0.160231]
[1721376882811,0.157423,63524.0,63517.0,0.160231]
[1721376883214,0.157424,63523.0,63517.0,0.160231]
[1721376883528,0.314841,63525.0,63517.0,0.002794]
[1721376883529,0.157426,63522.0,63517.0,0.002794]
[1721376883732,0.006,63520.0,63516.0,0.002794]
[1721376883940,0.006,63520.0,63519.0,0.002794]
[1721376884140,0.157429,63521.0,63515.0,0.157442]
[1721376884523,0.157429,63521.0,63516.0,0.002794]
[1721376885202,0.006,63520.0,63516.0,0.002794]
[1721376885413,0.157428,63521.0,63516.0,0.002794]
[1721376885624,0.157428,63521.0,63515.0,0.314885]
[1721376885860,0.165428,63521.0,63516.0,0.002794]
[1721376887162,0.157428,63521.0,63516.0,0.002794]
[1721376887371,0.314842,63524.0,63516.0,0.002794]
[1721376887572,0.008,63521.0,63516.0,0.160233]
[1721376887791,0.008,63521.0,63516.0,0.002794]
[1721376887792,0.94276479,63517.0,63516.0,0.002794]
[1721376887993,0.472344,63513.0,63512.0,0.01326261]
[1721376888211,1.102136,63513.0,63512.0,0.01326261]
[1721376888612,1.25651774,63513.0,63512.0,0.01326261]
[1721376888814,1.45734004,63513.0,63512.0,0.01326261]
[1721376889031,1.31613079,63513.0,63512.0,0.01326261]
[1721376889636,1.316132,63513.0,63512.0,0.01326261]
[1721376890581,1.325132,63513.0,63512.0,0.01326261]
[1721376890801,0.222996,63513.0,63490.0,0.28665401]
[1721376891063,0.222996,63513.0,63495.0,0.472472]
[1721376891064,0.157476,63502.0,63495.0,0.472472]
[1721376891386,0.157476,63502.0,63496.0,0.157489]
[1721376891739,0.157472,63504.0,63498.0,0.157484]
[1721376891923,0.157473,63503.0,63496.0,0.314978]
[1721376892126,0.157469,63505.0,63496.0,0.314978]
[1721376892321,0.002794,63504.0,63502.0,0.157473]
[1721376892530,0.31491,63511.0,63501.0,0.157477]
[1721376892531,0.157461,63508.0,63501.0,0.157477]
[1721376892764,0.160257,63507.0,63500.0,0.157479]
[1721376892963,0.009,63513.0,63497.0,0.46935574]
[1721376892964,0.157467,63506.0,63497.0,0.46935574]
[1721376893163,0.157467,63506.0,63500.0,0.157479]
[1721376893322,0.157462,63508.0,63501.0,0.157477]
[1721376893529,0.157463,63507.0,63501.0,0.157477]
[1721376893725,0.314911,63510.0,63502.0,0.157474]
[1721376893949,0.157461,63508.0,63503.0,0.1378]
[1721376894157,0.393277,63517.0,63503.0,0.1378]
[1721376894158,0.0784,63517.0,63503.0,0.1378]
[1721376894350,0.49200879,63526.0,63507.0,0.157461]
[1721376894351,0.157447,63514.0,63507.0,0.157461]
[1721376894550,0.314886,63515.0,63508.0,0.00314884]
[1721376894551,0.157448,63513.0,63508.0,0.00314884]
[1721376894780,0.157448,63513.0,63507.0,0.157461]
[1721376894972,0.157448,63513.0,63503.0,0.29218174]
[1721376894973,0.0754,63523.0,63503.0,0.60712674]
[1721376895173,0.003,63508.0,63506.0,0.314927]
[1721376895379,0.003,63508.0,63507.0,1.17374258]
[1721376895583,0.003,63508.0,63507.0,0.157462]
[1721376895751,0.003,63508.0,63504.0,0.314939]
[1721376895955,0.003,63508.0,63507.0,0.157462]
[1721376896179,0.314875,63518.0,63503.0,0.1378]
[1721376896180,0.314811,63531.0,63503.0,0.295272]
[1721376896377,0.05,63535.0,63504.0,0.00314897]
[1721376896378,0.34209114,63521.0,63504.0,0.00314897]
[1721376896625,0.34209114,63521.0,63503.0,0.1378]
[1721376896626,0.314888,63515.0,63503.0,0.1378]
[1721376896845,0.157456,63510.0,63504.0,0.157469]
[1721376896957,0.157452,63512.0,63505.0,0.157466]
[1721376897163,0.157452,63512.0,63504.0,0.314939]
[1721376897164,0.157441,63516.0,63510.0,0.157454]
[1721376897358,0.314872,63518.0,63506.0,0.17738174]
[1721376897628,0.13717479,63526.0,63503.0,0.1378]
[1721376897629,0.002,63508.0,63507.0,0.157462]
[1721376898066,0.15745,63512.0,63507.0,0.157462]
[1721376898441,0.16545,63512.0,63507.0,0.157462]
[1721376898709,0.157448,63513.0,63507.0,0.157462]
[1721376898888,0.157442,63516.0,63510.0,0.157454]
[1721376899328,0.31487,63519.0,63504.0,0.15438174]
[1721376899528,0.157439,63517.0,63511.0,0.157451]
[1721376899677,0.157444,63515.0,63509.0,0.157457]
[1721376899881,0.00939496,63530.0,63507.0,0.157462]
[1721376899882,0.157448,63513.0,63507.0,0.157462]
[1721376900088,0.157448,63513.0,63505.0,0.023]
[1721376900289,0.07717479,63508.0,63500.0,0.31496]
[1721376900488,0.15438174,63512.0,63497.0,0.0825]
[1721376900489,0.314932,63506.0,63497.0,0.0825]
[1721376900695,0.314932,63506.0,63497.0,0.08564933]
[1721376900894,0.314932,63506.0,63491.0,0.0093598]
[1721376900895,0.0314932,63506.0,63491.0,0.0093598]
[1721376901097,0.157476,63502.0,63496.0,0.157489]
[1721376901349,0.157476,63502.0,63492.0,0.46937974]
[1721376901350,0.157476,63502.0,63497.0,0.157487]
[1721376901985,0.314914,63510.0,63498.0,0.31497]
[1721376902186,0.0798,63512.0,63499.0,0.15753086]
[1721376902370,0.157456,63510.0,63504.0,0.157468]
[1721376902571,0.157459,63509.0,63503.0,0.157471]
[1721376903030,0.157461,63508.0,63500.0,0.314959]
[1721376903204,0.394705,63512.0,63502.0,0.157474]
[1721376903205,0.157458,63509.0,63502.0,0.157474]
[1721376903405,0.157454,63511.0,63505.0,0.157467]
[1721376903608,0.07717479,63519.0,63506.0,0.00314899]
[1721376903609,0.314876,63518.0,63506.0,0.00314899]
[1721376903803,0.157443,63515.0,63508.0,0.157459]
[1721376904020,0.157443,63515.0,63509.0,0.157457]
[1721376904471,0.314878,63517.0,63506.0,0.31493]
[1721376904665,0.008,63512.0,63504.0,0.143]
[1721376905026,0.157453,63511.0,63505.0,0.157467]
[1721376905234,0.314888,63515.0,63505.0,0.157467]
[1721376905235,0.320891,63515.0,63505.0,0.157467]
[1721376905447,0.157451,63512.0,63506.0,0.157465]
[1721376905650,0.157453,63511.0,63504.0,0.300468]
[1721376905855,0.15745,63513.0,63506.0,0.157464]
[1721376906031,0.15945,63512.0,63506.0,0.157464]
[1721376906299,0.314876,63518.0,63504.0,0.143]
[1721376906500,0.160233,63517.0,63510.0,0.157455]
[1721376906760,0.314865,63520.0,63510.0,0.314907]
[1721376906972,0.157433,63519.0,63510.0,0.314907]
[1721376907184,0.157436,63518.0,63512.0,0.157449]
[1721376907805,0.005,63515.0,63512.0,0.157449]
[1721376908023,0.463039,63525.0,63508.0,0.314916]
[1721376908232,0.463039,63525.0,63505.0,0.17738174]
[1721376908233,0.002794,63524.0,63513.0,0.23848174]
[1721376908451,0.008,63518.0,63513.0,0.23848174]
[1721376908654,0.008,63518.0,63514.0,0.157444]
[1721376908866,0.0624,63519.0,63508.0,0.0611]
[1721376909080,0.0624,63519.0,63499.0,0.314963]
[1721376909081,0.314888,63515.0,63499.0,0.314963]
[1721376909303,0.002794,63514.0,63506.0,0.157463]
[1721376909512,0.157441,63516.0,63509.0,0.157455]
[1721376909719,0.004,63515.0,63506.0,0.15438174]
[1721376909924,0.157457,63510.0,63500.0,0.2519]
[1721376910137,0.157457,63510.0,63503.0,0.157472]
[1721376910548,0.314897,63513.0,63504.0,0.15747]
[1721376910773,0.002794,63512.0,63504.0,0.15747]
[1721376911181,0.157455,63510.0,63504.0,0.15747]
[1721376911653,0.157455,63510.0,63503.0,0.157472]
[1721376911863,0.157453,63511.0,63502.0,0.314948]
[1721376912083,0.002794,63510.0,63502.0,0.379748]
[1721376912297,0.002794,63510.0,63509.0,0.787287]
[1721376912513,0.14719673,63524.0,63510.0,0.157454]
[1721376912514,0.157439,63517.0,63510.0,0.157454]
[1721376912724,0.002,63512.0,63511.0,0.157452]
[1721376912933,0.002,63512.0,63509.0,0.62675174]
[1721376913155,0.159451,63512.0,63506.0,0.157465]
[1721376913361,0.002,63512.0,63506.0,0.157465]
[1721376913933,0.002,63512.0,63507.0,0.157462]
[1721376914139,0.002,63512.0,63506.0,0.157465]
[1721376914339,0.15945,63512.0,63506.0,0.157465]
[1721376914751,0.04633097,63523.0,63516.0,0.157439]
[1721376914752,0.20375497,63523.0,63516.0,0.157439]
[1721376914959,0.20375497,63523.0,63507.0,0.15753062]
[1721376914960,0.157431,63520.0,63513.0,0.157446]
[1721376915213,0.141,63524.0,63514.0,0.2219303]
[1721376915416,0.314858,63521.0,63511.0,0.314905]
[1721376915552,0.157436,63518.0,63511.0,0.157452]
[1721376915920,0.002794,63520.0,63512.0,0.15745]
[1721376915921,0.472294,63520.0,63512.0,0.15745]
[1721376916094,0.157433,63519.0,63513.0,0.157447]
[1721376917016,0.157433,63519.0,63510.0,0.0644]
[1721376917017,0.006,63518.0,63510.0,0.0644]
[1721376917218,0.006,63518.0,63503.0,0.32464202]
[1721376917219,0.006,63518.0,63503.0,0.378343]
[1721376917430,0.006,63518.0,63505.0,0.157467]
[1721376917431,0.157451,63512.0,63505.0,0.157467]
[1721376917663,0.006,63518.0,63506.0,0.38328174]
[1721376917867,0.157429,63521.0,63514.0,0.157444]
[1721376918065,0.006,63519.0,63514.0,0.157444]
[1721376918273,0.006,63519.0,63506.0,0.38328174]
[1721376918274,0.157436,63518.0,63511.0,0.15745]
[1721376918464,0.006,63519.0,63511.0,0.15438174]
[1721376918665,0.006,63519.0,63513.0,0.157447]
[1721376919183,0.006,63519.0,63515.0,0.157442]
[1721376919622,0.00084,63520.0,63516.0,0.15744]
[1721376919828,0.00084,63520.0,63514.0,0.314889]
[1721376919829,0.00084,63520.0,63517.0,0.157436]
[1721376920041,0.00084,63520.0,63519.0,0.157433]
[1721376920252,0.00084,63520.0,63519.0,0.62668074]
[1721376920444,0.00084,63520.0,63519.0,0.96454674]
[1721376921010,0.00484,63520.0,63519.0,0.96454674]
[1721376921422,0.00084,63520.0,63519.0,0.96454674]
[1721376922630,0.00084,63520.0,63519.0,1.78317874]
[1721376922839,0.00084,63520.0,63519.0,1.91391215]
[1721376923456,0.00184,63520.0,63519.0,2.07991215]
[1721376923626,0.00184,63520.0,63519.0,2.17991215]
[1721376923972,0.00084,63520.0,63519.0,2.17991215]
[1721376924591,0.00184,63520.0,63519.0,2.17991215]
[1721376924912,0.00184,63520.0,63519.0,2.04917874]
[1721376925731,0.00184,63520.0,63519.0,2.17990809]
[1721376926038,0.00084,63520.0,63519.0,2.04917874]
[1721376926203,0.00084,63520.0,63519.0,2.17990936]
[1721376926434,0.00184,63520.0,63519.0,2.04917874]
[1721376928449,0.00083,63540.0,63539.0,0.786917]
[1721376928650,0.00083,63540.0,63539.0,1.30939874]
[1721376928850,0.00083,63540.0,63539.0,1.57416574]
[1721376929085,0.00083,63540.0,63539.0,1.62416574]
[1721376930506,0.002794,63555.0,63542.0,0.05]
[1721376930709,0.002794,63555.0,63554.0,0.975632]
[1721376930983,0.00083,63568.0,63554.0,0.975632]
[1721376930984,0.002794,63567.0,63566.0,0.471949]
[1721376931263,0.002794,63567.0,63566.0,0.700849]
[1721376931264,0.46304871,63567.0,63566.0,0.700849]
[1721376931455,0.0656,63567.0,63561.0,0.157328]
[1721376931610,0.0656,63567.0,63562.0,0.157326]
[1721376931783,0.0656,63567.0,63563.0,0.157321]
[1721376931985,0.00083,63568.0,63562.0,0.31465]
[1721376932206,0.00083,63568.0,63558.0,0.05]
[1721376932207,0.00083,63568.0,63563.0,0.46902574]
[1721376932417,0.00083,63568.0,63567.0,0.157314]
[1721376932772,0.00083,63568.0,63567.0,0.471942]
[1721376932976,0.00083,63568.0,63567.0,0.78657]
[1721376934019,0.00083,63568.0,63567.0,0.80957]
[1721376935041,0.00083,63568.0,63567.0,0.498942]
[1721376935245,0.00083,63568.0,63567.0,0.027]
[1721376935449,0.00083,63568.0,63567.0,0.498942]
[1721376936232,0.00083,63568.0,63567.0,0.81357]
[1721376936395,0.00083,63568.0,63567.0,0.498942]
[1721376936640,0.00083,63568.0,63567.0,0.80957]
[1721376937046,0.00083,63568.0,63567.0,1.51347974]
[1721376937047,0.00183,63568.0,63567.0,1.51347974]
[1721376937245,0.00083,63568.0,63567.0,1.55747974]
[1721376937505,0.00083,63568.0,63567.0,1.69387974]
[1721376937722,0.00083,63568.0,63567.0,1.69887974]
[1721376937886,0.00083,63568.0,63567.0,1.64887974]
[1721376938083,0.00083,63568.0,63567.0,1.64387974]
[1721376938292,0.00183,63568.0,63567.0,1.69987974]
[1721376938486,0.00183,63568.0,63567.0,1.64987974]
[1721376939460,0.00183,63568.0,63567.0,1.69987974]
[1721376939635,0.00183,63568.0,63567.0,1.64987974]
[1721376940074,0.00183,63568.0,63567.0,1.69987974]
[1721376940383,0.00183,63568.0,63567.0,1.79987974]
[1721376940783,0.00183,63568.0,63567.0,1.74987974]
[1721376941411,0.00183,63568.0,63567.0,1.72477974]
[1721376942440,0.00183,63568.0,63567.0,1.62301677]
[1721376942641,0.14173,63568.0,63567.0,0.006]
[1721376943705,0.14073,63568.0,63554.0,0.2289]
[1721376943861,0.07717479,63562.0,63556.0,0.15734]
[1721376944044,0.07717479,63562.0,63557.0,0.157339]
[1721376944448,0.07717479,63562.0,63548.0,0.2289]
[1721376944673,0.1375,63560.0,63549.0,0.15438174]
[1721376944877,0.002794,63559.0,63555.0,0.157343]
[1721376945072,0.1375,63560.0,63555.0,0.157343]
[1721376945778,0.1375,63560.0,63556.0,0.15734]
[1721376945954,0.1375,63560.0,63553.0,0.314695]
[1721376945955,0.1375,63560.0,63554.0,0.157344]
[1721376946159,0.1375,63560.0,63555.0,0.157341]
[1721376946364,0.1375,63560.0,63555.0,0.314684]
[1721376946574,0.1375,63560.0,63551.0,0.314705]
[1721376946777,0.1375,63560.0,63559.0,0.157334]
[1721376946980,0.1385,63560.0,63559.0,0.157334]
[1721376947207,0.1385,63560.0,63559.0,0.472002]
[1721376947381,0.1385,63560.0,63559.0,0.78667]
[1721376947612,0.1405,63560.0,63559.0,0.80967]
[1721376948138,0.1375,63560.0,63559.0,0.80967]
[1721376948345,0.1375,63560.0,63559.0,0.495002]
[1721376948551,0.1375,63560.0,63552.0,0.46908174]
[1721376948552,0.1385,63560.0,63552.0,0.3147]
[1721376948763,0.1375,63560.0,63553.0,0.023]
[1721376948984,0.1375,63560.0,63555.0,0.157343]
[1721376949230,0.1375,63560.0,63550.0,0.314711]
[1721376949231,0.1398,63555.0,63550.0,0.04336291]
[1721376949436,0.157356,63550.0,63539.0,0.15]
[1721376949818,0.1398,63555.0,63539.0,0.15]
[1721376949819,0.002794,63549.0,63544.0,0.15737]
[1721376950019,0.157354,63551.0,63544.0,0.15737]
[1721376950149,0.16015,63550.0,63542.0,0.157374]
[1721376950351,0.16015,63550.0,63543.0,0.157372]
[1721376950551,0.002794,63550.0,63543.0,0.314746]
[1721376950755,0.002794,63551.0,63545.0,0.157366]
[1721376950993,0.002794,63551.0,63542.0,0.15438174]
[1721376950994,0.005,63549.0,63544.0,0.31474]
[1721376951343,0.005,63549.0,63545.0,0.157368]
[1721376951806,0.005,63549.0,63548.0,0.157361]
[1721376952231,0.005,63549.0,63548.0,0.472083]
[1721376952639,0.1398,63555.0,63549.0,0.314717]
[1721376952837,0.1398,63555.0,63549.0,0.472074]
[1721376953013,0.1398,63555.0,63550.0,0.157354]
[1721376953424,0.157348,63554.0,63547.0,0.157362]
[1721376953631,0.1398,63555.0,63548.0,0.023]
[1721376954053,0.1398,63555.0,63550.0,0.157355]
[1721376954259,0.315496,63560.0,63548.0,0.023]
[1721376954260,0.07633,63560.0,63553.0,0.2289]
[1721376954461,0.00083,63560.0,63559.0,0.472002]
[1721376954665,0.00083,63560.0,63559.0,0.80967]
[1721376954826,0.00083,63560.0,63559.0,1.03857]
[1721376955220,0.00083,63560.0,63559.0,0.495002]
[1721376955911,0.00083,63560.0,63559.0,0.180334]
[1721376956322,0.00083,63560.0,63559.0,0.495002]
[1721376956531,0.00083,63560.0,63559.0,0.180334]
[1721376956921,0.00083,63560.0,63559.0,0.80967]
[1721376957163,0.00083,63560.0,63559.0,0.495002]
[1721376957562,0.00083,63560.0,63559.0,0.500002]
[1721376957734,0.00083,63560.0,63559.0,0.495002]
[1721376958116,0.00083,63560.0,63559.0,0.500002]
[1721376958318,0.00083,63560.0,63559.0,0.495002]
[1721376958868,0.00083,63560.0,63559.0,0.500002]
[1721376959379,0.00083,63560.0,63559.0,0.005]
[1721376959794,0.00083,63560.0,63556.0,0.15734]
[1721376960008,0.00083,63560.0,63555.0,0.314683]
[1721376960216,0.00083,63560.0,63557.0,0.157337]
[1721376960426,0.00083,63560.0,63559.0,0.314668]
[1721376960634,0.00083,63560.0,63559.0,0.180334]
[1721376961192,0.00083,63560.0,63559.0,0.185334]
[1721376961392,0.00083,63560.0,63559.0,0.180334]
[1721376961850,0.00083,63560.0,63559.0,0.027]
[1721376962054,0.06143,63560.0,63559.0,0.004]
[1721376962300,0.27163588,63560.0,63559.0,0.004]
[1721376962495,1.24505,63560.0,63559.0,0.004]
[1721376962696,1.24505,63560.0,63550.0,0.00018942]
[1721376962697,0.61496,63551.0,63550.0,0.00018942]
[1721376963945,0.929667,63551.0,63550.0,0.00018942]
[1721376964158,1.08404874,63551.0,63550.0,0.00018942]
[1721376964358,1.83789914,63551.0,63550.0,0.00018942]
[1721376964506,1.52319214,63551.0,63550.0,0.00018942]
[1721376965366,1.39875574,63551.0,63550.0,0.00018942]
[1721376965966,1.40275574,63551.0,63550.0,0.00018942]
[1721376966254,1.08404874,63551.0,63550.0,0.00018942]
[1721376966410,0.929667,63551.0,63550.0,0.00018942]
[1721376966605,0.934667,63551.0,63550.0,0.00018942]
[1721376967431,0.1479,63551.0,63550.0,0.00018942]
[1721376967592,0.305253,63551.0,63550.0,0.00018942]